bitfinex/quotes_ETHUSD_20250404
["timestamp","ask_amount","ask_price","bid_price","bid_amount"]
[1743775809231,42.13458322,1787.7,1787.6,1e-05]
[1743775810639,8.59534,1787.2,1787.1,0.05]
[1743775810810,22.98828261,1787.2,1787.1,0.05]
[1743775811014,29.31808383,1787.2,1787.1,1e-05]
[1743775811393,30.10098516,1787.2,1787.1,1e-05]
[1743775811629,29.31808383,1787.2,1787.1,1e-05]
[1743775812001,29.73090168,1787.2,1787.1,1e-05]
[1743775813642,19.73274785,1787.2,1787.1,1e-05]
[1743775814142,22.73274785,1787.2,1787.1,1e-05]
[1743775814323,19.73274785,1787.2,1787.1,1e-05]
[1743775814842,22.73274785,1787.2,1787.1,1e-05]
[1743775815354,28.31186468,1787.2,1787.1,1e-05]
[1743775815554,31.70255415,1787.2,1787.1,1e-05]
[1743775816458,31.70355415,1787.2,1787.1,1e-05]
[1743775817158,26.12443732,1787.2,1787.1,1e-05]
[1743775817451,31.70355415,1787.2,1787.1,1e-05]
[1743775818030,5.59785,1786.4,1786.3,0.7859]
[1743775818357,5.59785,1786.4,1786.1,0.05]
[1743775818358,11.19655,1786.3,1786.1,0.05]
[1743775818563,0.06091561,1786.2,1786.1,0.05]
[1743775818727,5.65938561,1786.2,1786.1,0.05]
[1743775819091,0.06091561,1786.2,1786.1,0.05]
[1743775820262,0.06091561,1786.3,1786.1,0.05]
[1743775820757,6.48785561,1786.3,1786.1,0.05]
[1743775821059,5.59847,1786.2,1786.1,0.05]
[1743775821257,8.59847,1786.2,1786.1,0.05]
[1743775821455,8.65938561,1786.2,1786.1,0.05]
[1743775822859,9.0765397,1786.2,1786.1,0.05]
[1743775823162,10.3198717,1786.2,1786.1,0.05]
[1743775824322,16.3798617,1786.2,1786.1,0.05]
[1743775824527,17.10164609,1786.2,1786.1,1e-05]
[1743775825373,21.92961409,1786.2,1786.1,1e-05]
[1743775826708,5.59824,1786.3,1786.1,1e-05]
[1743775826909,0.06091561,1786.2,1786.1,1e-05]
[1743775827261,6.05999,1786.4,1786.2,0.7888]
[1743775827462,0.06091561,1786.3,1786.1,1e-05]
[1743775827973,6.05999,1786.4,1786.1,5.59874]
[1743775828304,0.06091561,1786.4,1786.2,6.07933606]
[1743775828506,6.855,1786.7,1786.4,5.59764]
[1743775828664,7.38536787,1787.1,1786.7,5.59678]
[1743775828860,5.59659,1786.8,1786.7,0.8178]
[1743775829098,7.38537787,1787.1,1786.7,6.41471]
[1743775829277,0.06091561,1787.0,1786.7,6.41456]
[1743775829499,0.7706,1787.4,1787.0,5.59582]
[1743775829500,5.59484,1787.4,1787.0,5.59582]
[1743775829666,0.06091561,1787.3,1787.1,0.8143]
[1743775829862,12.44835,1787.6,1787.2,5.59534]
[1743775829863,6.854,1787.6,1787.2,5.59534]
[1743775830079,6.83059,1787.7,1787.1,0.8143]
[1743775830080,5.59473,1787.4,1787.1,0.8143]
[1743775830366,0.06091561,1787.3,1787.1,0.8143]
[1743775830589,0.06091561,1787.5,1787.1,1.455313]
[1743775830793,5.59393,1787.7,1787.1,0.8143]
[1743775830975,0.06091561,1787.6,1787.4,5.59467]
[1743775831177,12.44749,1787.8,1786.9,5.59624]
[1743775831178,0.06091561,1787.7,1787.6,5.59409]
[1743775831381,25.183,1788.2,1787.7,5.59377]
[1743775831382,0.06091561,1787.9,1787.7,5.59377]
[1743775831664,0.06091561,1788.0,1787.8,5.59344]
[1743775831877,0.06091561,1788.2,1787.9,0.8109]
[1743775832065,5.59273,1788.1,1787.9,0.8109]
[1743775832291,0.06091561,1788.0,1787.9,0.8109]
[1743775832472,5.59284,1788.0,1787.9,0.8109]
[1743775832799,5.59284,1788.0,1787.7,1.26970522]
[1743775833006,0.06091561,1787.9,1787.7,1.26970522]
[1743775833204,5.59346,1787.8,1787.4,6.3845]
[1743775833505,0.06091561,1787.7,1787.6,0.47913634]
[1743775833702,0.06091561,1787.8,1787.6,0.47913634]
[1743775834007,0.06091561,1787.8,1787.4,0.7898]
[1743775834169,5.59415,1787.6,1787.2,5.59527]
[1743775834505,0.75230717,1787.8,1787.4,5.59471]
[1743775834506,6.34589717,1787.8,1787.4,5.59471]
[1743775834675,0.06091561,1787.8,1787.5,1.30123567]
[1743775834884,0.06091561,1787.8,1787.6,5.59404]
[1743775835078,5.65418561,1787.9,1787.5,6.41628]
[1743775835286,5.59427,1787.6,1787.2,6.36823]
[1743775835497,0.06091561,1787.5,1787.3,5.59483]
[1743775835672,9.91191561,1787.6,1787.3,0.4787877]
[1743775835871,0.99119156,1787.5,1787.3,0.4787877]
[1743775836205,5.65562561,1787.4,1787.3,0.4787877]
[1743775836406,5.65562561,1787.4,1787.0,6.8367177]
[1743775836407,0.06091561,1787.4,1787.0,6.8367177]
[1743775836610,5.65574561,1787.4,1787.0,6.8367177]
[1743775836811,0.06091561,1787.4,1787.0,6.8365677]
[1743775836993,0.06091561,1787.4,1787.0,1.2407877]
[1743775837185,0.06091561,1787.5,1787.2,5.59516]
[1743775837387,5.65534561,1787.5,1787.1,6.0743977]
[1743775837609,5.59494,1787.4,1787.1,0.4787877]
[1743775837932,0.06091561,1787.3,1787.2,5.59534]
[1743775838117,0.06091561,1787.6,1787.3,5.59474]
[1743775838289,0.06091561,1787.6,1787.4,5.59454]
[1743775838609,0.06091561,1787.7,1787.5,5.5944]
[1743775838915,5.59287,1788.0,1787.7,5.59375]
[1743775839077,5.59287,1788.0,1787.8,5.59346]
[1743775839078,0.06091561,1788.0,1787.8,5.59346]
[1743775839290,0.06091561,1788.0,1787.7,5.59375]
[1743775839624,5.59283,1788.1,1787.6,5.59393]
[1743775839790,0.06091561,1788.0,1787.7,5.5936]
[1743775839998,0.06091561,1788.0,1787.8,5.59343]
[1743775840198,0.06091561,1788.0,1787.8,6.41713]
[1743775840451,0.06091561,1788.0,1787.8,0.8237]
[1743775841424,0.06091561,1788.0,1787.8,6.41712]
[1743775841626,0.32466396,1787.9,1787.8,6.41712]
[1743775842033,0.06091561,1788.2,1787.9,5.59299]
[1743775842188,0.32793399,1787.9,1787.8,0.8237]
[1743775842538,5.59346,1787.8,1787.5,0.7533]
[1743775842695,0.06091561,1787.7,1787.5,6.34757]
[1743775842897,0.32464188,1787.7,1787.5,6.34757]
[1743775843096,0.32464188,1787.7,1787.5,0.7533]
[1743775843424,0.06091561,1787.6,1787.5,0.7533]
[1743775843588,0.38555749,1787.7,1787.5,0.7533]
[1743775843785,0.38555749,1787.7,1787.5,6.34758]
[1743775844033,1.10901324,1787.7,1787.2,0.8265]
[1743775844189,1.10901324,1787.7,1787.4,5.59461]
[1743775844388,0.38555749,1787.7,1787.4,11.18921]
[1743775844590,5.97955749,1787.7,1787.3,5.59499]
[1743775844835,5.59414,1787.6,1787.3,5.59488]
[1743775844988,0.06091561,1787.5,1787.2,6.42171]
[1743775845189,0.32469645,1787.4,1787.2,6.42169]
[1743775845427,0.32469645,1787.4,1787.2,0.8265]
[1743775845597,0.32469645,1787.4,1787.2,6.42182]
[1743775845927,5.5942,1787.6,1787.3,5.595]
[1743775846232,6.849,1787.8,1787.5,5.5944]
[1743775846529,6.90991561,1787.8,1787.5,5.5944]
[1743775846732,6.90991561,1787.8,1787.6,0.7919]
[1743775846889,6.90991561,1787.8,1787.6,6.38584]
[1743775847085,3.0,1788.0,1787.7,11.18744]
[1743775847404,3.06091561,1788.0,1787.7,5.59367]
[1743775847601,3.06091561,1788.0,1787.7,5.59361]
[1743775847799,0.06091561,1788.0,1787.7,5.59358]
[1743775848181,0.06091561,1788.0,1787.6,6.38595]
[1743775848387,0.06091561,1788.0,1787.8,5.59322]
[1743775848621,6.847,1788.1,1787.7,5.59361]
[1743775848622,12.50059561,1788.1,1787.7,5.59361]
[1743775848930,5.59362,1787.8,1787.5,5.59429]
[1743775849223,0.06091561,1788.0,1787.7,5.59363]
[1743775849396,5.59348,1787.8,1787.4,6.36]
[1743775849601,5.65469561,1787.7,1787.4,6.36]
[1743775849808,0.06091561,1787.7,1787.4,6.35996]
[1743775849995,5.65439561,1787.8,1787.5,5.59439]
[1743775850324,5.65439561,1787.8,1787.5,5.59432]
[1743775850542,5.65439561,1787.8,1787.5,11.18856]
[1743775850825,8.59286,1788.0,1787.6,5.59393]
[1743775851026,0.06091561,1787.9,1787.6,5.59393]
[1743775851230,6.846,1788.0,1787.7,5.59371]
[1743775851523,6.846,1788.0,1787.7,11.18742]
[1743775851727,6.846,1788.0,1787.7,5.59366]
[1743775851934,6.90691561,1788.0,1787.7,11.18729]
[1743775852338,6.90691561,1788.0,1787.5,5.59437]
[1743775852499,15.43801,1788.3,1787.9,5.59294]
[1743775852703,0.06091561,1788.2,1787.9,5.59294]
[1743775853037,5.65316561,1788.2,1787.9,5.59294]
[1743775853222,5.59268,1788.1,1787.8,6.38011]
[1743775853612,5.59284,1788.0,1787.8,0.7867]
[1743775853840,5.59224,1788.2,1787.8,6.37995]
[1743775854024,0.06091561,1788.1,1787.8,6.37995]
[1743775854230,11.24630561,1788.1,1787.8,0.7867]
[1743775854447,5.59161,1788.4,1788.1,5.59239]
[1743775854608,0.06091561,1788.3,1788.0,5.59282]
[1743775854802,0.06091561,1788.3,1787.9,5.59299]
[1743775854803,5.59228,1788.2,1787.9,5.59299]
[1743775855040,11.18408,1788.3,1787.9,11.18598]
[1743775855204,11.18338,1788.4,1788.0,5.5927]
[1743775855404,0.06091561,1788.3,1788.0,5.59268]
[1743775855604,0.06091561,1788.3,1788.1,11.18487]
[1743775855805,5.65224561,1788.5,1788.2,5.59221]
[1743775856004,5.65224561,1788.5,1788.1,5.59236]
[1743775856205,5.65224561,1788.5,1788.2,5.59215]
[1743775856727,0.32858256,1788.4,1788.2,5.59215]
[1743775856930,0.32858256,1788.4,1788.0,6.151878]
[1743775857141,0.06091561,1788.3,1788.0,5.59261]
[1743775857334,0.06091561,1788.3,1788.0,11.1853]
[1743775857644,0.32732817,1788.2,1788.1,5.59252]
[1743775857845,1.08002817,1788.2,1787.6,0.8077]
[1743775858069,5.59299,1788.0,1787.6,6.40156]
[1743775858249,6.90491561,1787.9,1787.6,6.40156]
[1743775858609,0.32485486,1787.8,1787.7,5.59362]
[1743775858951,0.32485486,1787.8,1787.7,5.64955569]
[1743775859110,0.32485486,1787.8,1787.7,6.42262]
[1743775859312,5.59166,1788.4,1788.0,5.59279]
[1743775859512,3.06091561,1788.5,1787.8,5.59345]
[1743775859726,0.3266105,1788.3,1788.1,11.95375]
[1743775860012,8.65230561,1788.5,1788.2,5.59221]
[1743775860348,0.32745591,1788.4,1788.3,5.5919]
[1743775860545,0.32745591,1788.4,1788.3,6.77180126]
[1743775860746,12.49526561,1788.8,1788.5,5.59108]
[1743775860907,12.49526561,1788.8,1788.3,0.48001533]
[1743775860908,5.59107,1788.6,1788.3,0.48001533]
[1743775861112,5.65160561,1788.7,1788.3,0.48001533]
[1743775861113,6.844,1788.8,1788.5,5.59104]
[1743775861323,6.90491561,1788.8,1788.5,11.18216]
[1743775861523,6.90491561,1788.8,1788.6,5.59083]
[1743775861524,6.844,1788.8,1788.6,5.59083]
[1743775861742,6.844,1788.8,1788.7,0.48001533]
[1743775862509,6.844,1788.8,1788.5,6.39963]
[1743775862745,0.06091561,1788.7,1788.5,6.39963]
[1743775862944,0.06091561,1788.7,1788.5,0.8084]
[1743775863145,5.65157561,1788.7,1788.3,6.40044]
[1743775863326,5.65159561,1788.7,1788.3,6.88051533]
[1743775863632,0.06091561,1788.7,1788.5,5.59125]
[1743775863829,0.06091561,1788.7,1788.4,5.59147]
[1743775864364,12.4345,1788.8,1788.4,5.59145]
[1743775864569,0.06091561,1788.7,1788.4,5.59145]
[1743775864764,12.4345,1788.8,1788.4,11.18287]
[1743775864929,0.06091561,1788.7,1788.3,0.8087]
[1743775865132,6.44177561,1788.7,1788.3,11.99218]
[1743775865333,5.65167561,1788.7,1788.4,5.59157]
[1743775865595,6.844,1788.8,1788.6,5.59096]
[1743775865777,0.06091561,1788.8,1788.6,5.59096]
[1743775866070,5.65125561,1788.8,1788.5,5.59126]
[1743775866364,7.58081817,1788.8,1788.4,0.4793864]
[1743775866580,5.59095,1788.7,1788.3,6.40055]
[1743775866781,5.65192561,1788.6,1788.3,0.8087]
[1743775866979,5.65192561,1788.6,1788.2,6.0715764]
[1743775867134,6.39559,1788.4,1788.0,0.4793864]
[1743775867334,0.06091561,1788.3,1788.0,6.0720664]
[1743775867537,0.06091561,1788.4,1788.2,5.59219]
[1743775867730,9.39999,1788.7,1788.4,5.59142]
[1743775867949,0.06091561,1788.7,1788.4,5.59142]
[1743775868686,18.07038,1788.9,1788.5,5.59116]
[1743775868978,0.06091561,1788.8,1788.5,5.59113]
[1743775869481,0.05,1788.9,1788.6,5.59066]
[1743775869699,0.05,1788.9,1788.7,5.59057]
[1743775869984,0.05,1788.9,1788.8,5.59033]
[1743775870353,0.05,1788.9,1788.6,0.4793864]
[1743775870681,0.05,1788.9,1788.5,6.36896]
[1743775870833,0.05,1788.9,1788.5,1.414696]
[1743775871038,0.05,1788.9,1788.8,5.59033]
[1743775871487,0.05,1788.9,1788.8,6.44782843]
[1743775871670,0.38580852,1788.9,1788.8,6.39193]
[1743775871891,0.05,1788.9,1788.8,6.4478217]
[1743775872195,0.05,1788.9,1788.8,8.12308921]
[1743775872408,0.05,1788.9,1788.8,0.4793864]
[1743775872708,5.97668114,1788.9,1788.8,0.4793864]
[1743775872871,5.64002,1788.9,1788.8,0.4793864]
[1743775873090,6.03759675,1788.9,1788.6,0.7758]
[1743775873606,6.03769675,1788.9,1788.5,11.18218]
[1743775873760,0.44757675,1788.9,1788.6,5.59096]
[1743775873963,0.38666114,1788.9,1788.8,5.59033]
[1743775874160,0.38666114,1788.9,1788.6,5.59095]
[1743775874364,0.38666114,1788.9,1788.6,6.8290768]
[1743775874666,0.38666114,1788.9,1788.7,5.64629979]
[1743775874879,0.38666114,1788.9,1788.8,5.59033]
[1743775875202,6.838,1789.6,1788.9,5.58982]
[1743775875373,0.31018596,1789.5,1789.1,6.38687]
[1743775875701,0.31018596,1789.5,1789.2,5.58888]
[1743775875913,0.31018596,1789.5,1789.3,5.58857]
[1743775876503,0.31018596,1789.5,1789.2,6.06699973]
[1743775876704,0.31018596,1789.5,1789.2,6.06684973]
[1743775876868,5.89836596,1789.5,1789.2,0.47793973]
[1743775877067,5.95928157,1789.5,1789.2,0.47793973]
[1743775877267,0.37110157,1789.5,1789.2,11.65592973]
[1743775877503,0.31018596,1789.5,1789.3,5.58858]
[1743775877805,0.31018596,1789.5,1789.4,5.58846]
[1743775877971,5.64816561,1789.8,1789.4,5.58846]
[1743775878173,5.87298343,1789.7,1789.2,6.83437297]
[1743775878476,6.37366,1789.4,1789.3,0.47793973]
[1743775878688,5.5892,1789.2,1788.9,0.47793973]
[1743775878895,5.58971,1789.0,1788.9,0.47793973]
[1743775879095,5.59026,1788.9,1788.6,1.25563973]
[1743775879296,11.18058,1788.9,1788.6,1.25563973]
[1743775879498,5.59065,1788.7,1788.6,0.47793973]
[1743775879810,11.5219397,1788.7,1788.3,6.85122973]
[1743775880013,5.65187561,1788.6,1788.3,0.47793973]
[1743775880219,5.59159,1788.4,1788.3,0.47793973]
[1743775880366,5.59159,1788.4,1788.0,0.47793973]
[1743775880367,5.59215,1788.3,1788.0,0.47793973]
[1743775880569,7.98750147,1788.4,1787.9,0.47793973]
[1743775880570,11.52461378,1788.2,1787.9,0.47793973]
[1743775880875,5.87128817,1788.2,1787.9,0.47793973]
[1743775881078,0.27907817,1788.2,1788.0,5.59254]
[1743775881412,5.65282561,1788.3,1788.0,5.59254]
[1743775881614,0.27998659,1788.2,1788.0,5.59254]
[1743775881818,0.27998659,1788.2,1787.9,1.16646697]
[1743775881819,0.27998659,1788.2,1787.9,6.75951697]
[1743775881987,0.27998659,1788.2,1787.9,1.6444067]
[1743775882313,0.27998659,1788.2,1788.0,5.59272]
[1743775882672,0.27998659,1788.2,1788.1,6.39582]
[1743775883151,6.835,1788.4,1788.1,6.39582]
[1743775883270,6.835,1788.4,1788.2,5.59214]
[1743775883600,12.42719,1788.6,1788.1,0.8033]
[1743775883804,3.06091561,1788.5,1788.1,5.5925]
[1743775884103,5.65222561,1788.5,1788.0,5.59272]
[1743775884313,12.42698,1788.6,1788.2,5.59206]
[1743775884608,12.42698,1788.6,1788.2,5.59218]
[1743775884609,6.836,1788.6,1788.2,5.59218]
[1743775884809,6.836,1788.6,1788.2,5.59202]
[1743775884984,12.42706,1788.6,1788.2,11.18427]
[1743775885315,6.05999,1789.1,1788.3,0.05591137]
[1743775885479,30.73411,1789.2,1788.8,5.59021]
[1743775885680,5.65048561,1789.1,1788.7,11.93231]
[1743775885888,0.06091561,1789.1,1788.7,0.7513]
[1743775886081,12.42478,1789.3,1788.7,6.34186]
[1743775886313,0.7783,1789.5,1789.1,5.58938]
[1743775886314,5.58847,1789.4,1789.1,5.58938]
[1743775886612,5.80279716,1789.3,1788.9,5.58999]
[1743775886773,5.86371277,1789.3,1788.9,6.148829]
[1743775887113,0.21379716,1789.3,1789.0,5.58961]
[1743775887311,0.21379716,1789.3,1789.1,6.4179]
[1743775887478,0.21379716,1789.3,1789.1,0.8286]
[1743775887674,11.17718,1789.4,1789.1,0.8286]
[1743775887876,5.80412321,1789.2,1788.9,6.959189]
[1743775888076,5.58794,1789.6,1789.0,0.75181183]
[1743775888290,5.58835,1789.5,1789.1,5.58937]
[1743775888626,5.58835,1789.5,1789.1,5.58924]
[1743775888834,5.58786,1789.6,1789.2,5.589]
[1743775888986,5.58753,1789.7,1789.3,6.36922]
[1743775889324,5.58753,1789.7,1789.3,6.42510076]
[1743775889529,5.58726,1789.8,1789.4,5.58836]
[1743775889830,0.06091561,1789.8,1789.3,7.01173008]
[1743775889997,5.58771,1789.7,1789.3,12.60033008]
[1743775890193,5.58771,1789.7,1789.3,12.60031008]
[1743775890506,5.58809,1789.6,1789.3,1.42311008]
[1743775890722,5.58757,1789.7,1789.3,7.01175008]
[1743775890928,0.06091561,1789.7,1789.1,6.39997]
[1743775891127,11.17675,1789.5,1789.1,6.39997]
[1743775891438,5.58868,1789.4,1789.1,0.8106]
[1743775891747,0.06091561,1789.3,1788.9,5.58984]
[1743775891910,5.58902,1789.3,1788.9,5.58984]
[1743775892114,5.5892,1789.2,1788.9,5.58984]
[1743775892642,5.64993561,1789.3,1788.9,11.17976]
[1743775892937,5.58899,1789.3,1788.9,5.58984]
[1743775893138,5.58899,1789.3,1788.9,6.788897]
[1743775893339,5.64989561,1789.3,1788.9,11.1797]
[1743775893645,5.58851,1789.4,1789.0,5.58968]
[1743775893803,5.64942561,1789.4,1789.0,5.58968]
[1743775894007,5.64942561,1789.4,1789.0,5.5896]
[1743775894208,11.17622,1789.6,1789.1,0.0558889]
[1743775894397,5.58733,1789.8,1789.4,5.58826]
[1743775894614,11.23566561,1789.8,1789.4,5.58826]
[1743775894935,5.5883,1789.5,1789.2,0.8076]
[1743775895138,5.58861,1789.4,1789.2,0.8076]
[1743775895329,0.06091561,1789.4,1788.9,6.39758]
[1743775895501,0.06091561,1789.4,1788.7,0.42390666]
[1743775895502,5.58935,1789.2,1788.8,5.59031]
[1743775895697,5.58928,1789.2,1788.7,0.7615]
[1743775895899,11.24013561,1789.1,1788.7,6.35199]
[1743775896101,5.58961,1789.1,1788.7,11.94248]
[1743775896342,5.58973,1789.0,1788.7,0.7615]
[1743775896549,5.58973,1789.0,1788.7,6.35212]
[1743775897031,5.58973,1789.0,1788.7,6.35215]
[1743775897437,5.58973,1789.0,1788.7,0.7615]
[1743775897632,5.58973,1789.0,1788.7,6.35214]
[1743775897836,0.8007,1789.2,1788.7,1.8685707]
[1743775898146,5.58848,1789.4,1788.7,1.8685707]
[1743775898147,5.5885,1789.4,1789.1,5.58928]
[1743775898328,5.58825,1789.5,1789.1,5.64516823]
[1743775898504,5.58819,1789.5,1789.2,5.58908]
[1743775899018,5.58859,1789.4,1789.1,6.41888]
[1743775899400,5.64950561,1789.4,1789.0,5.58944]
[1743775899831,5.64916561,1789.5,1789.0,5.64554859]
[1743775900035,5.64916561,1789.5,1789.1,5.5893]
[1743775900236,11.23750561,1789.5,1789.1,5.5893]
[1743775900538,5.58927,1789.2,1788.9,6.41942]
[1743775901545,5.58926,1789.2,1788.9,6.41942]
[1743775901714,0.1833078,1789.1,1788.9,6.4194]
[1743775902041,7.5842,1789.6,1788.9,6.4194]
[1743775902042,11.17651,1789.5,1789.1,5.58927]
[1743775902240,0.18400618,1789.4,1789.2,5.58882]
[1743775902441,0.06091561,1789.8,1789.3,0.7819]
[1743775902746,0.1860307,1789.7,1789.6,5.58783]
[1743775903040,0.05,1789.9,1789.6,6.705208]
[1743775903221,0.05,1789.9,1789.8,5.58721]
[1743775904142,0.05,1789.9,1789.7,0.8273]
[1743775904450,5.58775,1789.7,1789.4,0.8294]
[1743775904608,5.58773,1789.7,1789.3,5.58848]
[1743775904808,5.58789,1789.6,1789.3,5.58848]
[1743775905138,6.829,1789.8,1789.2,0.8294]
[1743775905343,12.41635,1789.8,1789.5,5.58811]
[1743775905506,0.05,1789.9,1789.6,0.05587362]
[1743775905729,0.05,1789.9,1789.8,5.58721]
[1743775906286,0.05,1789.9,1789.8,15.57711]
[1743775906431,0.05,1789.9,1789.8,16.05334979]
[1743775906633,0.05,1789.9,1789.8,13.05334979]
[1743775906853,0.05,1789.9,1789.8,0.8299]
[1743775907137,0.05,1789.9,1789.6,5.5877]
[1743775907138,0.05,1789.9,1789.6,5.5878]
[1743775907446,0.05,1789.9,1789.6,1.35528]
[1743775907654,0.05,1789.9,1789.8,5.58721]
[1743775907975,0.05,1789.9,1789.7,5.58752]
[1743775908145,0.05,1789.9,1789.8,5.58721]
[1743775909573,0.05,1789.9,1789.7,5.58751]
[1743775909574,0.05,1789.9,1789.6,6.38417]
[1743775909784,0.05,1789.9,1789.7,5.58728]
[1743775910070,0.05,1789.9,1789.6,6.3843]
[1743775910476,5.63705,1789.9,1789.6,0.7965]
[1743775910969,0.05,1789.9,1789.6,0.7965]
[1743775911176,0.05,1789.9,1789.6,6.38414]
[1743775912293,0.05,1789.9,1789.7,5.5875]
[1743775912483,0.05,1789.9,1789.6,0.7965]
[1743775912652,0.05,1789.9,1789.7,5.58751]
[1743775912849,5.63692,1789.9,1789.6,6.38416]
[1743775913050,5.58754,1789.7,1789.3,6.34447]
[1743775913241,5.5875,1789.8,1789.4,5.58845]
[1743775913446,5.58741,1789.8,1789.4,5.58845]
[1743775913647,5.58741,1789.8,1789.3,0.7557]
[1743775913648,5.58817,1789.5,1789.3,0.7557]
[1743775913963,5.63701,1789.9,1789.3,1.390176]
[1743775914169,5.63701,1789.9,1789.5,5.58799]
[1743775914343,0.11091561,1789.9,1789.3,6.34443]
[1743775914538,5.58795,1789.6,1789.3,6.34443]
[1743775914748,5.58795,1789.6,1789.3,0.7557]
[1743775915088,5.5885,1789.4,1789.2,0.47642928]
[1743775915379,5.5885,1789.4,1789.1,6.86560928]
[1743775915582,6.37956,1789.5,1789.1,6.92132727]
[1743775915776,5.58787,1789.6,1789.3,5.58876]
[1743775915981,5.58756,1789.7,1789.3,5.58876]
[1743775916479,0.05,1789.9,1789.6,5.58771]
[1743775916683,0.05,1789.9,1789.8,5.58721]
[1743775917001,0.05,1789.9,1789.8,5.64307369]
[1743775917301,0.05,1789.9,1789.8,6.71026837]
[1743775917850,0.05,1789.9,1789.8,7.95270212]
[1743775918672,0.05,1789.9,1789.8,11.00856394]
[1743775919257,0.05,1789.9,1789.8,10.95270212]
[1743775919789,1e-05,1789.9,1789.8,10.95270212]
[1743775920693,1e-05,1789.9,1789.8,7.95270212]
[1743775920914,1e-05,1789.9,1789.8,0.47683375]
[1743775921288,1e-05,1789.9,1789.6,6.06449375]
[1743775921500,0.85632561,1789.9,1789.6,0.47683375]
[1743775921705,6.44346561,1789.9,1789.6,0.47683375]
[1743775921881,0.79541,1789.9,1789.7,5.5874]
[1743775922089,1e-05,1789.9,1789.7,5.58738]
[1743775922305,1e-05,1789.9,1789.8,5.58721]
[1743775922892,1e-05,1789.9,1789.8,9.41511]
[1743775923202,1e-05,1789.9,1789.8,9.89072596]
[1743775923408,0.8797,1790.9,1790.7,5.58436]
[1743775923584,0.05,1790.9,1790.8,5.58409]
[1743775923910,0.05,1790.9,1790.7,5.58425]
[1743775924435,5.58451,1790.7,1790.3,6.35004]
[1743775924731,5.58433,1790.8,1790.4,6.220184]
[1743775924891,5.58433,1790.8,1790.2,5.58593]
[1743775924892,5.5849,1790.6,1790.2,5.58593]
[1743775925084,5.5849,1790.6,1790.2,11.17175]
[1743775925290,5.5849,1790.6,1790.1,0.7645]
[1743775925291,5.58507,1790.5,1790.1,6.35067]
[1743775925509,5.58607,1790.2,1789.8,6.9245]
[1743775925733,5.58684,1790.0,1789.7,1.117518]
[1743775925959,12.00567,1790.0,1789.6,5.58773]
[1743775926163,12.00567,1790.0,1789.4,0.7623]
[1743775926164,0.832,1790.0,1789.7,5.58751]
[1743775926315,6.41878,1790.0,1789.6,5.58775]
[1743775926517,6.41878,1790.0,1789.4,0.7623]
[1743775926518,0.832,1790.0,1789.4,0.7623]
[1743775926707,0.832,1790.0,1788.9,6.35217]
[1743775926708,5.58893,1789.3,1788.9,6.35217]
[1743775927065,6.82,1789.4,1789.1,5.58936]
[1743775927252,6.82,1789.4,1789.0,0.635217]
[1743775927559,5.58889,1789.3,1789.0,0.635217]
[1743775927711,5.64980561,1789.3,1788.9,11.17981]
[1743775927910,12.40847,1789.4,1789.0,5.58971]
[1743775928106,12.40847,1789.4,1789.0,5.58959]
[1743775928357,12.40847,1789.4,1788.8,0.47667828]
[1743775928358,5.64989561,1789.3,1788.8,6.06672828]
[1743775928554,5.59002,1788.9,1788.8,0.47667828]
[1743775928758,5.59002,1788.9,1788.5,5.59111]
[1743775929077,8.58943,1789.1,1788.6,6.149991]
[1743775929225,5.65034561,1789.1,1788.6,6.149941]
[1743775929626,5.58981,1789.0,1788.6,6.149941]
[1743775930071,5.65072561,1789.0,1788.6,6.149941]
[1743775930243,5.65072561,1789.0,1788.6,6.149931]
[1743775930776,5.65072561,1789.0,1788.6,6.150041]
[1743775931257,5.58981,1789.0,1788.6,6.20581371]
[1743775931554,5.59004,1788.9,1788.6,0.559111]
[1743775931757,0.1169472,1788.9,1788.6,0.559111]
[1743775931962,0.1169472,1788.9,1788.7,0.05590207]
[1743775932129,0.1169472,1788.9,1788.7,5.59045]
[1743775932335,0.1169472,1788.9,1788.5,5.59104]
[1743775932563,11.1799,1789.0,1788.6,5.59093]
[1743775932878,5.5899,1789.0,1788.5,5.59104]
[1743775933041,0.10669217,1788.9,1788.5,5.59104]
[1743775933229,6.36362,1788.7,1788.2,5.59199]
[1743775933465,0.10437485,1788.6,1788.4,5.59143]
[1743775933668,0.10437485,1788.6,1788.5,5.59127]
[1743775933871,0.7965,1789.0,1788.6,5.59075]
[1743775934078,0.10545676,1788.9,1788.7,5.59053]
[1743775934599,0.10545676,1788.9,1788.6,5.59075]
[1743775934791,5.58972,1789.0,1788.7,0.559075]
[1743775935104,5.58966,1789.1,1788.7,6.149675]
[1743775935308,9.39601,1789.2,1788.8,5.59029]
[1743775935513,13.27816561,1789.2,1788.8,5.59029]
[1743775935683,5.58942,1789.1,1788.8,5.59029]
[1743775935897,5.58942,1789.1,1788.6,5.59069]
[1743775935898,5.59045,1788.8,1788.4,5.59144]
[1743775936097,7.53101261,1789.1,1788.3,11.75189]
[1743775936098,11.24261561,1788.7,1788.3,5.59189]
[1743775936306,11.1817,1788.7,1788.3,5.59189]
[1743775936640,5.59146,1788.5,1788.2,0.639429]
[1743775936924,0.84801561,1788.4,1788.1,0.05]
[1743775937091,5.59221,1788.2,1788.1,0.05]
[1743775937292,12.47412561,1788.2,1788.1,0.05]
[1743775937592,12.41321,1788.2,1788.1,0.05]
[1743775937827,18.037349,1788.2,1788.1,0.05]
[1743775938716,5.59443,1787.5,1787.1,0.05]
[1743775938897,5.65562561,1787.4,1787.1,0.05]
[1743775939225,5.59511,1787.3,1787.1,0.05]
[1743775939542,6.40171,1787.5,1787.1,0.05]
[1743775939705,5.59514,1787.3,1787.1,0.05]
[1743775939909,5.65605561,1787.3,1787.1,0.05]
[1743775940206,0.06091561,1787.3,1787.1,0.05]
[1743775940499,0.06091561,1787.4,1787.1,5.64552]